bitfinex-derivatives/quotes_SOLF0:USTF0_20250528
["timestamp","ask_amount","ask_price","bid_price","bid_amount"]
[1748420324790,2.51969764,173.72,173.71,0.03771489]
[1748420324992,10.04981557,173.73,173.71,0.03771489]
[1748420325191,5.7533,173.73,173.71,5.79151489]
[1748420325995,5.7535,173.72,173.71,0.03771489]
[1748420326393,4.33881742,173.75,173.71,0.03771489]
[1748420326595,5.7533,173.73,173.71,0.03771489]
[1748420326795,4.33881742,173.75,173.71,0.03771489]
[1748420327090,2.51979413,173.74,173.71,0.03771489]
[1748420327297,2.51976531,173.73,173.71,0.03771489]
[1748420327497,4.33881742,173.75,173.71,0.03771489]
[1748420327796,2.51976659,173.74,173.71,0.03771489]
[1748420327995,2.51976659,173.73,173.71,0.03771489]
[1748420328197,0.04230185,173.75,173.71,0.03771489]
[1748420328394,5.7535,173.72,173.71,0.03771489]
[1748420328593,8.27331727,173.72,173.71,0.03771489]
[1748420328794,8.27329173,173.72,173.71,0.03771489]
[1748420331402,8.2740098,173.72,173.71,0.03771489]
[1748420332198,8.27410275,173.72,173.71,0.03771489]
[1748420332794,8.27534603,173.72,173.71,0.03771489]
[1748420333799,5.7548,173.68,173.65,6.34041557]
[1748420334104,5.7548,173.68,173.65,12.09591557]
[1748420334701,5.79833717,173.68,173.65,12.13563248]
[1748420337205,0.04353717,173.68,173.66,5.7554]
[1748420347009,0.04353717,173.68,173.65,12.13573248]
[1748420347612,0.04353717,173.68,173.66,5.7554]
[1748420348907,0.04353717,173.68,173.67,10.05161557]
[1748420349316,28.72,173.75,173.67,4.29651557]
[1748420349510,8.27407489,173.74,173.69,4.29651557]
[1748420349709,2.52107489,173.73,173.69,4.29651557]
[1748420349910,5.753,173.74,173.7,5.754]
[1748420350104,8.27405713,173.73,173.7,5.754]
[1748420350308,5.79254608,173.73,173.7,5.79527601]
[1748420351107,5.79254608,173.73,173.7,0.04127601]
[1748420351308,5.7536,173.72,173.7,0.04127601]
[1748420356211,5.7538,173.71,173.7,0.04127601]
[1748420365324,8.27689149,173.71,173.7,0.04127601]
[1748420365524,5.7538,173.71,173.7,0.04127601]
[1748420365921,8.27685765,173.71,173.7,0.04127601]
[1748420366723,8.27647937,173.71,173.7,0.04127601]
[1748420367324,5.7538,173.71,173.7,0.04127601]
[1748420367527,8.27644857,173.71,173.7,0.04127601]
[1748420369216,5.7538,173.71,173.7,0.04127601]
[1748420369824,8.27656504,173.71,173.7,0.04127601]
[1748420370030,5.7538,173.71,173.7,0.04127601]
[1748420370229,8.27616201,173.71,173.7,0.04127601]
[1748420370633,8.27613521,173.71,173.7,0.04127601]
[1748420373132,5.7538,173.71,173.7,0.04127601]
[1748420373432,8.27473816,173.71,173.7,0.04127601]
[1748420374232,8.27432515,173.71,173.7,0.04127601]
[1748420374431,8.27429974,173.71,173.7,0.04127601]
[1748420374631,8.27429912,173.71,173.7,0.04127601]
[1748420375128,8.27426109,173.71,173.7,0.04127601]
[1748420375326,5.7554,173.67,173.65,2.0439]
[1748420377828,5.7555,173.66,173.65,2.0439]
[1748420378026,0.03844578,173.68,173.65,2.0439]
[1748420378335,5.7553,173.67,173.65,2.0439]
[1748420380531,5.7555,173.66,173.65,2.0439]
[1748420380736,5.7555,173.66,173.64,40.74259484]
[1748420382825,5.7558,173.65,173.64,0.04367927]
[1748420387435,5.7571,173.61,173.6,3.48043]
[1748420388437,5.79522573,173.62,173.6,3.48043]
[1748420389132,0.03832573,173.62,173.6,3.48043]
[1748420389536,0.03832573,173.62,173.61,5.7571]
[1748420398142,0.03832573,173.62,173.61,10.05361557]
[1748420398341,28.66,173.69,173.64,5.7559]
[1748420398548,28.66,173.69,173.63,4.29651557]
[1748420399247,0.03740256,173.68,173.64,5.79475375]
[1748420399645,0.03740256,173.68,173.65,5.7558]
[1748420400346,0.03740256,173.68,173.64,5.79475375]
[1748420400347,5.79250256,173.68,173.64,5.79475375]
[1748420400645,0.03740256,173.68,173.64,5.79475375]
[1748420401144,5.7554,173.67,173.64,5.79475375]
[1748420402434,0.03740256,173.68,173.65,5.7558]
[1748420402638,0.03740256,173.68,173.67,4.29651557]
[1748420402842,5.7537,173.72,173.68,5.7546]
[1748420403043,32.95651557,173.76,173.69,4.29651557]
[1748420403247,2.5088607,173.75,173.69,4.29651557]
[1748420403541,5.7533,173.73,173.69,10.05091557]
[1748420403747,5.79487066,173.73,173.69,10.09453318]
[1748420405553,0.04157066,173.73,173.71,4.29651557]
[1748420406249,0.04157066,173.73,173.72,5.7535]
[1748420407950,4.29651557,173.81,173.71,4.29651557]
[1748420408154,2.50886239,173.8,173.75,4.29651557]
[1748420408450,32.93651557,173.82,173.76,5.7521]
[1748420408646,2.50902522,173.81,173.76,5.7521]
[1748420408852,32.93651557,173.82,173.77,0.04261343]
[1748420408853,0.04350116,173.8,173.77,0.04261343]
[1748420409047,5.79460116,173.8,173.77,0.04261343]
[1748420409248,0.04350116,173.8,173.77,0.04261343]
[1748420409851,5.7515,173.79,173.77,0.04261343]
[1748420410042,0.04350116,173.8,173.77,0.04261343]
[1748420410549,5.7515,173.78,173.77,0.04261343]
[1748420415547,0.04350116,173.8,173.77,0.04261343]
[1748420415749,28.62,173.87,173.78,28.62]
[1748420416056,28.62,173.9,173.78,39.22004628]
[1748420416253,2.50447492,173.89,173.81,6.69984628]
[1748420416450,5.7478,173.9,173.85,5.7489]
[1748420416655,28.62,173.93,173.82,28.62]
[1748420416857,0.03916138,173.89,173.86,0.03806339]
[1748420417157,5.7485,173.87,173.86,0.03806339]
[1748420420352,5.7485,173.87,173.79,2.0267]
[1748420420353,5.7508,173.8,173.79,30.6467]
[1748420420857,28.62,173.89,173.79,30.6467]
[1748420421262,0.03940139,173.86,173.82,0.03976851]
[1748420422754,5.7498,173.83,173.82,0.03976851]
[1748420431958,0.03940139,173.86,173.82,0.03976851]
[1748420432273,28.62,173.95,173.85,6.69984628]
[1748420432566,5.7469,173.92,173.88,5.7479]
[1748420433274,5.78333277,173.92,173.88,5.78776364]
[1748420433462,5.78333277,173.92,173.89,5.7476]
[1748420433765,0.03643277,173.92,173.88,0.03986364]
[1748420433965,0.03643277,173.92,173.9,5.7474]
[1748420434963,0.03643277,173.92,173.89,5.7478]
[1748420435669,5.7472,173.91,173.88,5.78796364]
[1748420437659,5.7473,173.91,173.88,0.03986364]
[1748420438862,5.7473,173.91,173.88,5.78806364]
[1748420439764,5.7476,173.9,173.88,0.03986364]
[1748420442272,5.7479,173.89,173.88,0.03986364]
[1748420442567,0.03643277,173.92,173.88,0.03986364]
[1748420443275,5.7478,173.9,173.88,0.03986364]
[1748420445672,0.03643277,173.92,173.89,6.69984628]
[1748420446362,0.03643277,173.92,173.9,5.7474]
[1748420447665,0.03643277,173.92,173.89,12.44754628]
[1748420449565,5.78333277,173.92,173.89,12.44754628]
[1748420450373,5.78333277,173.92,173.89,6.69984628]
[1748420450875,0.03643277,173.92,173.89,12.44764628]
[1748420451271,0.03643277,173.92,173.89,41.02764628]
[1748420451672,0.03643277,173.92,173.9,5.7474]
[1748420456272,0.03643277,173.92,173.91,5.7472]
[1748420457278,28.58,173.99,173.93,5.7465]
[1748420457474,5.7454,173.97,173.92,6.69984628]
[1748420458269,0.03969807,173.96,173.93,5.78500854]
[1748420459372,0.03969807,173.96,173.94,5.7462]
[1748420459563,5.78539807,173.96,173.93,0.03850854]
[1748420459769,0.03969807,173.96,173.93,0.03850854]
[1748420461776,5.7459,173.95,173.93,0.03850854]
[1748420461977,0.03969807,173.96,173.93,0.03850854]
[1748420462569,5.7462,173.94,173.93,0.03850854]
[1748420474179,5.746,173.95,173.93,0.03850854]
[1748420474379,0.03969807,173.96,173.93,0.03850854]
[1748420474783,0.03969807,173.96,173.93,5.78490854]
[1748420475782,5.78559807,173.96,173.93,5.78490854]
[1748420476486,5.78559807,173.96,173.93,0.03850854]
[1748420476687,5.7459,173.95,173.93,0.03850854]
[1748420476987,0.03969807,173.96,173.93,0.03850854]
[1748420477381,0.03969807,173.96,173.93,5.78490854]
[1748420479286,0.03969807,173.96,173.94,5.7462]
[1748420481183,0.03969807,173.96,173.95,5.7459]
[1748420486691,0.03969807,173.96,173.93,28.59850854]
[1748420487295,5.7459,173.95,173.93,28.59850854]
[1748420487890,0.03969807,173.96,173.93,34.34500854]
[1748420488090,0.03969807,173.96,173.93,28.59850854]
[1748420489387,5.7459,173.95,173.93,28.59850854]
[1748420491994,0.03969807,173.96,173.95,5.7459]
[1748420492399,30.4654,174.05,173.93,35.29835482]
[1748420492702,5.7441,174.01,173.93,35.25984628]
[1748420492999,5.7441,174.01,173.97,5.7449]
[1748420493201,2.46533569,174.0,173.97,5.7449]
[1748420493502,0.03937881,174.0,173.97,0.03749785]
[1748420493703,0.03937881,174.0,173.98,5.7449]
[1748420494205,0.03937881,174.0,173.97,0.03749785]
[1748420494505,0.03937881,174.0,173.97,5.78249785]
[1748420494902,5.78367881,174.0,173.97,5.78249785]
[1748420498997,5.7446,173.99,173.97,5.78249785]
[1748420499197,0.03937881,174.0,173.97,0.03749785]
[1748420500509,5.78367881,174.0,173.97,5.78249785]
[1748420500707,5.78367881,174.0,173.97,0.03749785]
[1748420503902,0.03937881,174.0,173.97,5.78269785]
[1748420504700,0.03937881,174.0,173.98,5.7448]
[1748420504900,0.03937881,174.0,173.97,0.03749785]
[1748420505407,5.7449,173.98,173.97,0.03749785]
[1748420509701,5.7447,173.99,173.97,0.03749785]
[1748420510508,5.7449,173.98,173.97,0.03749785]
[1748420511505,5.7447,173.99,173.97,0.03749785]
[1748420513603,5.7446,173.99,173.97,0.03749785]
[1748420515708,5.7449,173.98,173.97,0.03749785]
[1748420516221,5.7448,173.99,173.97,0.03749785]
[1748420516623,0.03937881,174.0,173.97,0.03749785]
[1748420516919,0.03937881,174.0,173.99,5.7446]
[1748420517124,2.50606643,174.0,173.97,0.03749785]
[1748420517318,0.03937881,174.0,173.97,0.03749785]
[1748420517824,0.03937881,174.0,173.98,5.7447]
[1748420522016,2.46636172,173.99,173.97,0.03749785]
[1748420522222,0.03937881,174.0,173.97,0.03749785]
[1748420522223,2.46636172,173.98,173.97,0.03749785]
[1748420522429,2.46589455,173.98,173.97,0.03749785]
[1748420522921,8.21079455,173.98,173.97,0.03749785]
[1748420523527,8.21061374,173.98,173.97,0.03749785]
[1748420524227,8.21064328,173.98,173.97,0.03749785]
[1748420525228,8.21028448,173.98,173.97,0.03749785]
[1748420525732,8.21006221,173.98,173.97,0.03749785]
[1748420525923,5.7449,173.98,173.97,0.03749785]
[1748420526237,8.21006221,173.98,173.97,0.03749785]
[1748420527629,8.20943332,173.98,173.97,0.03749785]
[1748420529029,8.20938138,173.98,173.97,0.03749785]
[1748420530529,0.03937881,174.0,173.97,0.03749785]
[1748420530730,2.46470586,173.99,173.97,0.03749785]
[1748420530937,0.03937881,174.0,173.97,0.03749785]
[1748420531135,2.4646371,173.99,173.97,0.03749785]
[1748420531331,0.03937881,174.0,173.97,0.03749785]
[1748420531636,2.46448845,173.99,173.97,0.03749785]
[1748420531934,0.03937881,174.0,173.98,5.7449]
[1748420532133,2.46467147,173.99,173.97,0.03749785]
[1748420532333,0.03937881,174.0,173.97,0.03749785]
[1748420532526,0.03937881,174.0,173.98,5.7447]
[1748420533839,0.03937881,174.0,173.97,5.78269785]
[1748420534031,0.03937881,174.0,173.97,0.03749785]
[1748420534233,2.46463208,173.99,173.97,0.03749785]
[1748420534430,2.46463208,173.98,173.97,0.03749785]
[1748420534735,8.20953208,173.98,173.97,0.03749785]
[1748420535432,5.7449,173.98,173.97,0.03749785]
[1748420535624,8.20902978,173.98,173.97,0.03749785]
[1748420535833,8.20899381,173.98,173.97,0.03749785]
[1748420536533,8.20904911,173.98,173.97,0.03749785]
[1748420537335,8.20872796,173.98,173.97,0.03749785]
[1748420539136,8.20842308,173.98,173.97,0.03749785]
[1748420539734,5.7449,173.98,173.97,0.03749785]
[1748420540033,8.20830693,173.98,173.97,0.03749785]
[1748420540834,8.20823347,173.98,173.97,0.03749785]
[1748420541237,8.2082086,173.98,173.97,0.03749785]
[1748420542241,2.4633086,173.98,173.97,0.03749785]
[1748420543041,8.2082086,173.98,173.97,0.03749785]
[1748420543436,8.20837845,173.98,173.97,0.03749785]
[1748420545842,8.20859762,173.98,173.97,0.03749785]
[1748420547239,8.20878061,173.98,173.97,0.03749785]
[1748420547444,8.20889603,173.98,173.97,0.03749785]
[1748420548248,8.20896984,173.98,173.97,0.03749785]
[1748420548435,5.7449,173.98,173.97,0.03749785]
[1748420548639,8.20897323,173.98,173.97,0.03749785]
[1748420549344,8.20875041,173.98,173.97,0.03749785]
[1748420549846,8.20882217,173.98,173.97,0.03749785]
[1748420551045,8.20886036,173.98,173.97,0.03749785]
[1748420551557,8.20897613,173.98,173.97,0.03749785]
[1748420552646,8.20907389,173.98,173.97,0.03749785]
[1748420552853,8.20909099,173.98,173.97,0.03749785]
[1748420553850,2.46419099,173.98,173.97,0.03749785]
[1748420554753,2.46427495,173.98,173.97,0.03749785]
[1748420555152,2.46424767,173.98,173.97,0.03749785]
[1748420555457,2.46424767,173.98,173.97,5.78279785]
[1748420555649,2.46428843,173.98,173.97,5.78279785]
[1748420555850,2.46428843,173.98,173.97,0.03749785]
[1748420556255,2.46429484,173.98,173.97,0.03749785]
[1748420557154,8.20929484,173.98,173.97,0.03749785]
[1748420558748,8.20941732,173.98,173.97,0.03749785]
[1748420561157,8.20922821,173.98,173.97,0.03749785]
[1748420561356,8.20922548,173.98,173.97,0.03749785]
[1748420563866,5.745,173.98,173.97,0.03749785]
[1748420564058,8.20909192,173.98,173.97,0.03749785]
[1748420564575,5.745,173.98,173.97,0.03749785]
[1748420564762,8.20946564,173.98,173.97,0.03749785]
[1748420564963,5.745,173.98,173.97,0.03749785]
[1748420565166,2.46438932,173.98,173.97,0.03749785]
[1748420565667,2.46442183,173.98,173.97,0.03749785]
[1748420566569,2.4648336,173.98,173.97,0.03749785]
[1748420566969,2.46458592,173.98,173.97,0.03749785]
[1748420568982,5.7448,173.99,173.97,5.78279785]
[1748420569267,0.03937881,174.0,173.97,4.31616134]
[1748420569866,0.03937881,174.0,173.98,5.7448]
[1748420575176,5.78367881,174.0,173.98,5.7448]
[1748420575476,5.78367881,174.0,173.97,10.06126134]
[1748420575773,0.03937881,174.0,173.97,10.06126134]
[1748420576770,5.7447,173.99,173.97,10.06126134]
[1748420579674,5.78377881,174.0,173.98,5.745]
[1748420580579,5.7446,173.99,173.97,10.06146134]
[1748420580768,5.7446,173.99,173.97,0.03749785]
[1748420582869,5.7446,173.99,173.97,5.78269785]
[1748420583588,5.7446,173.99,173.97,0.03749785]
[1748420585579,5.745,173.98,173.97,0.03749785]
[1748420586385,8.20867196,173.98,173.97,0.03749785]
[1748420587086,5.745,173.98,173.97,0.03749785]
[1748420588994,0.03937881,174.0,173.97,0.03749785]
[1748420589180,2.46383169,173.99,173.97,0.03749785]
[1748420589381,0.03937881,174.0,173.97,0.03749785]
[1748420589582,8.20879413,173.99,173.97,0.03749785]
[1748420589781,0.03937881,174.0,173.97,0.03749785]
[1748420589986,2.46389087,173.99,173.97,0.03749785]
[1748420590188,5.7446,173.99,173.97,0.03749785]
[1748420590389,0.03937881,174.0,173.97,0.03749785]
[1748420591493,0.03937881,174.0,173.98,5.7447]
[1748420594788,0.03937881,174.0,173.99,5.7446]
[1748420602300,32.79866349,174.07,174.02,5.7435]
[1748420602496,5.7428,174.05,174.02,5.7435]
[1748420603203,5.7857945,174.05,174.02,5.78590501]
[1748420604607,5.743,174.04,174.02,5.78590501]
[1748420605799,5.743,174.04,174.02,0.04240501]
[1748420607003,5.743,174.04,174.02,5.78600501]
[1748420607199,5.7857945,174.05,174.02,5.78600501]
[1748420607600,0.0429945,174.05,174.03,5.7432]
[1748420610406,5.7857945,174.05,174.03,5.7432]
[1748420610806,5.7857945,174.05,174.04,5.743]
[1748420610807,0.0429945,174.05,174.04,5.743]
[1748420611004,0.0429945,174.05,174.03,4.27866349]
[1748420611404,0.0429945,174.05,174.03,10.02176349]
[1748420611908,5.7858945,174.05,174.03,10.02176349]
[1748420612109,5.7858945,174.05,174.03,4.27866349]
[1748420616106,5.7858945,174.05,174.03,10.02196349]
[1748420616300,0.0429945,174.05,174.02,0.04240501]
[1748420617011,5.7433,174.03,174.02,0.04240501]
[1748420641036,10.02196349,174.03,174.02,5.01e-06]
[1748420647643,5.7459,173.96,173.94,28.5]
[1748420647843,32.77866349,174.01,173.94,28.5]
[1748420648039,32.77866349,174.01,173.95,4.27866349]
[1748420648252,5.7453,173.98,173.95,10.02456349]
[1748420648639,0.04272101,173.98,173.95,4.31765724]
[1748420648840,5.7456,173.97,173.95,4.31765724]
[1748420649448,5.7456,173.97,173.95,0.03899375]
[1748420649946,5.78792101,173.98,173.95,5.78489375]
[1748420654253,5.7453,173.97,173.95,5.78489375]
[1748420655456,5.78782101,173.98,173.95,5.78489375]
[1748420656655,5.7453,173.97,173.95,5.78489375]
[1748420657062,5.78772101,173.98,173.95,5.78489375]
[1748420658056,5.7453,173.97,173.95,5.78489375]
[1748420659067,5.7456,173.96,173.95,0.03899375]
[1748420661070,4.27866349,173.96,173.91,1.9243]
[1748420661262,4.27866349,173.96,173.89,32.75866349]
[1748420661568,4.27866349,173.96,173.89,38.50636349]
[1748420661961,5.7471,173.92,173.89,32.75866349]
[1748420662267,0.04205205,173.94,173.91,0.03967859]
[1748420662463,5.78845205,173.94,173.91,0.03967859]
[1748420662664,5.78845205,173.94,173.92,5.7468]
[1748420665072,5.7466,173.93,173.91,10.06554208]
[1748420668278,5.7466,173.93,173.91,5.78687859]
[1748420673273,5.7469,173.92,173.91,0.03967859]
[1748420683875,0.04205205,173.94,173.91,0.03967859]
[1748420684478,5.7466,173.93,173.91,5.78677859]
[1748420687780,5.7469,173.92,173.91,0.03967859]
[1748420689576,5.7467,173.93,173.91,0.03967859]
[1748420694291,5.7469,173.92,173.91,0.03967859]
[1748420695595,5.7467,173.93,173.91,0.03967859]
[1748420695892,5.7467,173.93,173.91,5.78687859]
[1748420698195,5.7467,173.93,173.91,0.03967859]
[1748420698790,5.7469,173.92,173.91,0.03967859]
[1748420704893,5.7467,173.93,173.91,0.03967859]
[1748420705399,5.7469,173.92,173.91,0.03967859]
[1748420706298,5.78845205,173.94,173.91,4.31834208]
[1748420706503,0.04205205,173.94,173.91,4.31834208]
[1748420706904,0.04205205,173.94,173.93,5.7466]
[1748420708303,5.78835205,173.94,173.92,5.7468]
[1748420716005,0.04205205,173.94,173.91,4.31834208]
[1748420716211,0.04205205,173.94,173.91,0.03967859]
[1748420716710,5.7469,173.92,173.91,0.03967859]
[1748420724816,5.7468,173.93,173.91,0.03967859]
[1748420725019,0.04205205,173.94,173.91,4.31834208]
[1748420725621,0.04205205,173.94,173.93,5.7466]
[1748420732428,32.73866349,174.0,173.97,5.7451]
[1748420732733,4.27866349,174.0,173.97,5.7451]
[1748420732923,10.02316349,174.0,173.97,5.7451]
[1748420733531,10.06373006,174.0,173.97,5.78143403]
[1748420734820,0.04056657,174.0,173.97,0.03633403]
[1748420735027,0.04056657,174.0,173.97,4.31499752]
[1748420735226,0.04056657,174.0,173.99,5.7446]
[1748420736722,4.27866349,174.05,173.99,4.27866349]
[1748420737132,32.73866349,174.07,173.99,4.27866349]
[1748420737433,5.7426,174.06,174.03,5.7431]
[1748420737732,5.7822241,174.06,174.03,5.78313325]
[1748420738237,5.7427,174.05,174.03,0.04003325]
[1748420738925,5.7820241,174.06,174.03,5.78323325]
[1748420739125,0.0396241,174.06,174.03,0.04003325]
[1748420739334,28.46,174.18,174.05,4.27866349]
[1748420739639,5.7412,174.1,174.07,4.27866349]
[1748420740334,5.7414,174.09,174.05,10.02116349]
[1748420740536,5.7414,174.09,174.07,0.04342474]
[1748420740733,0.03704984,174.1,174.07,0.04342474]
[1748420741139,5.77824984,174.1,174.07,0.04342474]
[1748420741334,0.03704984,174.1,174.07,0.04342474]
[1748420742042,5.7417,174.09,174.07,0.04342474]
[1748420743342,5.77814984,174.1,174.07,0.04342474]
[1748420743840,0.03704984,174.1,174.07,0.04342474]
[1748420744742,5.77814984,174.1,174.07,0.04342474]
[1748420745735,0.03704984,174.1,174.07,0.04342474]
[1748420746141,0.03704984,174.1,174.07,28.48342474]
[1748420746338,0.03704984,174.1,174.09,5.7413]
[1748420747545,0.03704984,174.1,174.08,5.7416]
[1748420748742,0.03704984,174.1,174.09,5.7413]
[1748420749645,0.03704984,174.1,174.08,5.7416]
[1748420750045,0.03704984,174.1,174.07,28.48342474]
[1748420750747,0.03704984,174.1,174.08,5.7414]
[1748420752447,0.03704984,174.1,174.09,5.7413]
[1748420760646,0.03704984,174.1,174.08,7.8064]
[1748420760848,0.03704984,174.1,174.07,28.48342474]
[1748420761244,5.77824984,174.1,174.07,34.22542474]
[1748420762543,0.03704984,174.1,174.08,5.7417]
[1748420762748,0.03704984,174.1,174.07,28.48342474]
[1748420763254,0.03704984,174.1,174.09,5.7414]
[1748420767252,5.7391,174.16,174.13,5.7398]
[1748420768445,5.77664761,174.16,174.13,5.77717801]
[1748420769747,5.7394,174.15,174.13,0.03737801]
[1748420770542,5.7394,174.15,174.13,5.77737801]
[1748420773953,5.77674761,174.16,174.13,5.77737801]
[1748420775051,5.77674761,174.16,174.14,5.7397]
[1748420775950,5.77674761,174.16,174.13,5.77727801]
[1748420776343,5.7394,174.15,174.13,5.77727801]
[1748420777950,5.77674761,174.16,174.13,5.77727801]
[1748420779750,0.03754761,174.16,174.13,5.77727801]
[1748420780757,5.7394,174.15,174.13,5.77727801]
[1748420781347,5.77674761,174.16,174.13,0.03737801]
[1748420781552,0.03754761,174.16,174.13,0.03737801]
[1748420781951,0.03754761,174.16,174.14,5.7396]
[1748420782257,4.27010642,174.28,174.15,32.67010642]
[1748420782556,5.7359,174.26,174.22,10.00700642]
[1748420782751,5.7359,174.26,174.22,4.27010642]
[1748420783255,5.77266158,174.26,174.22,4.3132295]
[1748420783853,5.7363,174.25,174.22,4.3132295]
[1748420784253,0.03676158,174.26,174.22,4.3132295]
[1748420784654,5.7365,174.24,174.22,4.3132295]
[1748420785758,5.7368,174.23,174.22,4.3132295]
[1748420786061,5.7368,174.23,174.22,0.04312308]
[1748420797263,0.03676158,174.26,174.22,0.04312308]
[1748420798659,5.7368,174.23,174.22,0.04312308]
[1748420804875,5.7366,174.24,174.22,0.04312308]
[1748420805080,0.03676158,174.26,174.22,0.04312308]
[1748420806165,0.03676158,174.26,174.22,4.30830725]
[1748420806572,5.7363,174.25,174.22,10.04530725]
[1748420807376,0.03676158,174.26,174.22,4.30830725]
[1748420808171,5.7366,174.24,174.22,0.04312308]
[1748420808575,5.7366,174.24,174.22,5.78022308]
[1748420812583,5.7362,174.25,174.23,5.7367]
[1748420813984,0.03676158,174.26,174.24,5.7364]
[1748420813985,5.77266158,174.26,174.24,5.7364]
[1748420816083,0.03676158,174.26,174.25,5.7361]
[1748420816972,0.03676158,174.26,174.24,5.7363]
[1748420817172,0.03676158,174.26,174.23,4.26518417]
[1748420817578,0.03676158,174.26,174.23,10.00178417]
[1748420818186,5.77266158,174.26,174.23,10.00178417]
[1748420818586,0.03676158,174.26,174.23,4.26518417]
[1748420819987,5.77256158,174.26,174.24,5.7364]
[1748420820485,0.03676158,174.26,174.22,0.04312308]
[1748420820689,0.03676158,174.26,174.22,4.30830725]
[1748420822077,5.7363,174.25,174.22,4.30830725]
[1748420822276,0.03676158,174.26,174.22,4.30830725]
[1748420822479,2.47536318,174.25,174.22,4.30830725]
[1748420822688,2.47536318,174.24,174.22,4.30830725]
[1748420822988,0.03676158,174.26,174.22,4.30830725]
[1748420823187,8.21163164,174.25,174.23,5.7367]
[1748420823380,2.47530451,174.24,174.23,5.7367]
[1748420824284,5.7363,174.25,174.23,5.7367]
[1748420824484,2.47682978,174.24,174.23,5.7367]
[1748420824889,8.21322978,174.24,174.22,10.04530725]
[1748420825086,5.7364,174.24,174.22,4.30830725]
[1748420825290,2.47688859,174.23,174.22,4.30830725]
[1748420825885,8.21368859,174.23,174.22,0.04312308]
[1748420826688,5.7368,174.23,174.22,0.04312308]
[1748420826889,8.21291766,174.23,174.22,0.04312308]
[1748420827893,35.10130183,174.23,174.04,495.56]
[1748420828090,4.26518417,174.21,174.12,4.26518417]
[1748420828395,4.26518417,174.19,174.11,10.00588417]
[1748420828594,5.7397,174.15,174.11,10.00588417]
[1748420828799,32.62518417,174.19,174.11,4.26518417]
[1748420828993,32.62518417,174.19,174.13,0.03656373]
[1748420828994,0.04051976,174.17,174.13,0.03656373]
[1748420829190,5.7397,174.14,174.13,0.03656373]
[1748420849918,5.7391,174.16,174.13,0.03656373]
[1748420850119,0.04051976,174.17,174.13,4.30712195]
[1748420851123,0.04051976,174.17,174.13,0.03656373]
[1748420852223,5.7397,174.14,174.13,0.03656373]
[1748420855726,5.7395,174.15,174.13,0.03656373]
[1748420856633,5.7397,174.14,174.13,0.03656373]
[1748420858239,5.7393,174.16,174.13,5.77656373]
[1748420858939,5.7391,174.16,174.13,5.77656373]
[1748420859336,0.04051976,174.17,174.13,5.77656373]
[1748420859536,5.7397,174.15,174.13,0.03656373]
[1748420859731,0.04051976,174.17,174.13,0.03656373]
[1748420860144,5.7397,174.15,174.13,0.03656373]
[1748420861642,5.7397,174.14,174.13,0.03656373]
[1748420864445,5.7397,174.14,174.13,0.03656373]
[1748420865646,10.01025822,174.14,174.13,0.03656373]
[1748420872646,12.48089991,174.14,174.13,0.03656373]
[1748420873854,8.21034169,174.14,174.13,0.03656373]
[1748420874248,5.7397,174.14,174.13,0.03656373]
[1748420874448,8.21023976,174.14,174.13,0.03656373]
[1748420875450,8.20973722,174.14,174.13,0.03656373]
[1748420875759,2.46996317,174.14,174.13,0.03656373]
[1748420876052,2.46998728,174.14,174.13,0.03656373]
[1748420876249,5.7395,174.15,174.13,0.03656373]
[1748420876956,5.7395,174.15,174.13,5.77626373]
[1748420877655,0.04051976,174.17,174.13,5.77626373]
[1748420877852,2.47030668,174.16,174.13,5.77626373]
[1748420878155,0.04051976,174.17,174.13,0.03656373]
[1748420878355,2.47035004,174.16,174.13,0.03656373]
[1748420878552,5.7397,174.14,174.13,0.03656373]
[1748420879446,8.20977101,174.14,174.13,0.03656373]
[1748420879654,8.20975991,174.14,174.13,0.03656373]
[1748420879955,5.7397,174.14,174.13,0.03656373]
[1748420880752,34.0993,174.16,174.13,0.03656373]
[1748420880959,5.7393,174.16,174.13,0.03656373]
[1748420881262,5.7393,174.16,174.13,5.77636373]
[1748420881555,5.7395,174.15,174.13,5.77636373]
[1748420886061,5.7395,174.15,174.13,0.03656373]
[1748420886761,5.7395,174.15,174.13,5.77656373]
[1748420887559,5.7397,174.14,174.13,0.03656373]
[1748420892370,8.20923635,174.14,174.13,0.03656373]
[1748420893366,5.7411,174.1,174.08,7.6833]
[1748420893571,4.27055822,174.14,174.08,7.6833]
[1748420893772,5.7409,174.11,174.08,7.6833]
[1748420893963,4.27055822,174.14,174.08,7.6833]
[1748420894164,5.7408,174.11,174.09,0.03832391]
[1748420894364,5.7408,174.11,174.09,5.77952391]
[1748420894564,0.03751791,174.13,174.09,4.30888213]
[1748420894771,5.77761791,174.13,174.09,4.30888213]
[1748420895558,0.03751791,174.13,174.09,4.30888213]